[Event "Titled Tuesday Blitz May 11 2021"]
[White "Shimanov, Aleksandr"]
[Black "Mukhutdinov, Tigran"]
[WhiteFideId "4198603"]
[BlackFideId "34108570"]
[WhiteElo "2596"]
[BlackElo "2154"]
[Result "0-1"]
[Round "02"]
[TimeControl "180+1"]
[Date "2021.05.11"]
[WhiteClock "0:00:04"]
[BlackClock "0:00:18"]

1. c4 {[%clk 0:03:00]}  e5 {[%clk 0:02:59]} 2. Nc3 {[%clk 0:03:00]}  Nf6 {[%clk 0:02:59]} 3. g3 {[%clk 0:02:59]}  Nc6 {[%clk 0:02:59]} 4. Bg2 {[%clk 0:02:59]}  Bb4 {[%clk 0:02:59]} 5. e4 {[%clk 0:02:56]}  Bxc3 {[%clk 0:02:57]} 6. bxc3 {[%clk 0:02:56]}  d6 {[%clk 0:02:55]} 7. d3 {[%clk 0:02:54]}  O-O {[%clk 0:02:54]} 8. f4 {[%clk 0:02:43]}  a6 {[%clk 0:02:47]} 9. a4 {[%clk 0:02:38]}  Rb8 {[%clk 0:02:43]} 10. Nf3 {[%clk 0:02:35]}  b5 {[%clk 0:02:41]} 11. axb5 {[%clk 0:02:34]}  axb5 {[%clk 0:02:41]} 12. cxb5 {[%clk 0:02:35]}  Rxb5 {[%clk 0:02:39]} 13. O-O {[%clk 0:02:36]}  Bg4 {[%clk 0:02:38]} 14. h3 {[%clk 0:02:33]}  Bxf3 {[%clk 0:02:38]} 15. Qxf3 {[%clk 0:02:32]}  Rb3 {[%clk 0:02:35]} 16. Bd2 {[%clk 0:02:27]}  Qe7 {[%clk 0:02:29]} 17. Rfb1 {[%clk 0:02:21]}  Rfb8 {[%clk 0:02:27]} 18. Rxb3 {[%clk 0:02:11]}  Rxb3 {[%clk 0:02:28]} 19. Ra8+ {[%clk 0:02:11]}  Rb8 {[%clk 0:02:28]} 20. Rxb8+ {[%clk 0:02:08]}  Nxb8 {[%clk 0:02:29]} 21. Qd1 {[%clk 0:02:08]}  Nbd7 {[%clk 0:02:13]} 22. Be3 {[%clk 0:01:56]}  g6 {[%clk 0:02:04]} 23. Qb3 {[%clk 0:01:35]}  Kg7 {[%clk 0:02:01]} 24. Qc4 {[%clk 0:01:34]}  c5 {[%clk 0:01:56]} 25. Qa6 {[%clk 0:01:31]}  Nh5 {[%clk 0:01:52]} 26. Kh2 {[%clk 0:01:28]}  exf4 {[%clk 0:01:41]} 27. gxf4 {[%clk 0:01:27]}  Qf6 {[%clk 0:01:28]} 28. Qc6 {[%clk 0:01:01]}  Nf8 {[%clk 0:01:20]} 29. e5 {[%clk 0:00:58]}  Qh4 {[%clk 0:01:08]} 30. Qf3 {[%clk 0:00:52]}  dxe5 {[%clk 0:01:02]} 31. fxe5 {[%clk 0:00:51]}  Ne6 {[%clk 0:01:02]} 32. d4 {[%clk 0:00:37]}  cxd4 {[%clk 0:00:58]} 33. cxd4 {[%clk 0:00:37]}  Nxd4 {[%clk 0:00:53]} 34. Qg4 {[%clk 0:00:37]}  Nf5 {[%clk 0:00:46]} 35. Bg5 {[%clk 0:00:30]}  Qe1 {[%clk 0:00:37]} 36. Be4 {[%clk 0:00:16]}  Qg3+ {[%clk 0:00:33]} 37. Qxg3 {[%clk 0:00:16]}  Nhxg3 {[%clk 0:00:34]} 38. Bd3 {[%clk 0:00:13]}  h6 {[%clk 0:00:31]} 39. Bf6+ {[%clk 0:00:14]}  Kg8 {[%clk 0:00:31]} 40. Kg2 {[%clk 0:00:13]}  Nh5 {[%clk 0:00:30]} 41. Bxf5 {[%clk 0:00:04]}  Nxf6 {[%clk 0:00:30]} 42. Kf3 {[%clk 0:00:05]}  gxf5 {[%clk 0:00:20]} 43. exf6 {[%clk 0:00:06]}  Kh7 {[%clk 0:00:21]} 44. Kf4 {[%clk 0:00:06]}  Kg6 {[%clk 0:00:21]} 45. Ke5 {[%clk 0:00:04]}  Kg5 {[%clk 0:00:22]} 46. h4+ {[%clk 0:00:05]}  Kxh4 {[%clk 0:00:22]} 47. Kxf5 {[%clk 0:00:05]}  Kg3 {[%clk 0:00:22]} 48. Ke5 {[%clk 0:00:05]}  Kg4 {[%clk 0:00:17]} 49. Kd6 {[%clk 0:00:06]}  Kg5 {[%clk 0:00:18]} 50. Ke7 {[%clk 0:00:04]}  Kg6 {[%clk 0:00:18]} 0-1


[Site "https://www.chess.com"]

[Event "Titled Tuesday Blitz May 11 2021"]
[White "Song, Michael"]
[Black "Kovalev, Vladislav"]
[WhiteFideId "2613190"]
[BlackFideId "13504398"]
[WhiteElo "2274"]
[BlackElo "2573"]
[Result "0-1"]
[Round "02"]
[TimeControl "180+1"]
[Date "2021.05.11"]
[WhiteClock "0:00:19"]
[BlackClock "0:00:22"]

1. Nf3 {[%clk 0:03:00]}  Nf6 {[%clk 0:03:00]} 2. b3 {[%clk 0:03:01]}  g6 {[%clk 0:03:01]} 3. Bb2 {[%clk 0:03:01]}  Bg7 {[%clk 0:03:01]} 4. e3 {[%clk 0:03:02]}  d6 {[%clk 0:03:02]} 5. Be2 {[%clk 0:03:02]}  e5 {[%clk 0:03:02]} 6. d3 {[%clk 0:03:01]}  O-O {[%clk 0:03:02]} 7. O-O {[%clk 0:03:01]}  c5 {[%clk 0:03:01]} 8. c4 {[%clk 0:03:01]}  Nc6 {[%clk 0:03:02]} 9. Nc3 {[%clk 0:03:01]}  Re8 {[%clk 0:03:00]} 10. Nd2 {[%clk 0:03:00]}  Be6 {[%clk 0:02:53]} 11. Nde4 {[%clk 0:02:57]}  Nxe4 {[%clk 0:02:47]} 12. dxe4 {[%clk 0:02:57]}  a6 {[%clk 0:02:46]} 13. Qd2 {[%clk 0:02:55]}  f6 {[%clk 0:02:26]} 14. Rad1 {[%clk 0:02:53]}  Bf8 {[%clk 0:02:27]} 15. f4 {[%clk 0:02:47]}  Bf7 {[%clk 0:02:20]} 16. Nd5 {[%clk 0:02:41]}  Bg7 {[%clk 0:02:20]} 17. Bd3 {[%clk 0:02:28]}  Bxd5 {[%clk 0:01:51]} 18. exd5 {[%clk 0:02:21]}  Ne7 {[%clk 0:01:48]} 19. f5 {[%clk 0:02:18]}  g5 {[%clk 0:01:48]} 20. Be2 {[%clk 0:02:11]}  Rf8 {[%clk 0:01:45]} 21. Bh5 {[%clk 0:02:10]}  b5 {[%clk 0:01:45]} 22. Bc3 {[%clk 0:02:07]}  Qb6 {[%clk 0:01:42]} 23. h4 {[%clk 0:01:59]}  Bh6 {[%clk 0:01:39]} 24. g3 {[%clk 0:01:42]}  gxh4 {[%clk 0:01:38]} 25. gxh4 {[%clk 0:01:42]}  Kh8 {[%clk 0:01:39]} 26. Kh2 {[%clk 0:01:42]}  Rg8 {[%clk 0:01:38]} 27. Bf7 {[%clk 0:01:25]}  Rg4 {[%clk 0:01:36]} 28. Kh3 {[%clk 0:01:23]}  Rg7 {[%clk 0:01:36]} 29. Be6 {[%clk 0:01:22]}  Ra7 {[%clk 0:01:25]} 30. Qe2 {[%clk 0:01:18]}  Ng8 {[%clk 0:01:22]} 31. a4 {[%clk 0:01:03]}  b4 {[%clk 0:01:21]} 32. Bd2 {[%clk 0:00:59]}  Qd8 {[%clk 0:01:21]} 33. e4 {[%clk 0:00:47]}  Bxd2 {[%clk 0:01:22]} 34. Qxd2 {[%clk 0:00:46]}  Qe8 {[%clk 0:01:22]} 35. Qe2 {[%clk 0:00:43]}  Nh6 {[%clk 0:01:21]} 36. Rg1 {[%clk 0:00:43]}  a5 {[%clk 0:01:03]} 37. Qf3 {[%clk 0:00:42]}  Rac7 {[%clk 0:00:53]} 38. Rdf1 {[%clk 0:00:38]}  Rce7 {[%clk 0:00:52]} 39. Re1 {[%clk 0:00:23]}  Rc7 {[%clk 0:00:52]} 40. Ref1 {[%clk 0:00:23]}  Ra7 {[%clk 0:00:52]} 41. Re1 {[%clk 0:00:23]}  Rxg1 {[%clk 0:00:41]} 42. Rxg1 {[%clk 0:00:24]}  Rg7 {[%clk 0:00:42]} 43. Rxg7 {[%clk 0:00:24]}  Kxg7 {[%clk 0:00:42]} 44. h5 {[%clk 0:00:19]}  Qf8 {[%clk 0:00:31]} 45. Kh4 {[%clk 0:00:19]}  Kh8 {[%clk 0:00:30]} 46. Qg4 {[%clk 0:00:19]}  Qe7 {[%clk 0:00:26]} 47. Qg3 {[%clk 0:00:19]}  Qe8 {[%clk 0:00:22]} 48. Qg4 {[%clk 0:00:19]}  Nxg4 {[%clk 0:00:22]} 0-1


[Site "https://www.chess.com"]

[Event "Titled Tuesday Blitz May 11 2021"]
[White "Spata, German"]
[Black "Vasquez Schroeder, Rodrigo"]
[WhiteFideId "113026"]
[BlackFideId "3400042"]
[WhiteElo "2238"]
[BlackElo "2572"]
[Result "0-1"]
[Round "02"]
[TimeControl "180+1"]
[Date "2021.05.11"]
[WhiteClock "0:00:52"]
[BlackClock "0:01:54"]

1. d4 {[%clk 0:02:55]}  Nf6 {[%clk 0:02:58]} 2. Bf4 {[%clk 0:02:51]}  d5 {[%clk 0:02:50]} 3. e3 {[%clk 0:02:50]}  e6 {[%clk 0:02:50]} 4. Nf3 {[%clk 0:02:49]}  Bd6 {[%clk 0:02:50]} 5. Bg3 {[%clk 0:02:49]}  c5 {[%clk 0:02:49]} 6. c3 {[%clk 0:02:49]}  Qc7 {[%clk 0:02:49]} 7. Bb5+ {[%clk 0:02:44]}  Bd7 {[%clk 0:02:47]} 8. Bxd7+ {[%clk 0:02:44]}  Nbxd7 {[%clk 0:02:48]} 9. Nbd2 {[%clk 0:02:43]}  O-O {[%clk 0:02:48]} 10. O-O {[%clk 0:02:43]}  e5 {[%clk 0:02:45]} 11. dxe5 {[%clk 0:02:43]}  Nxe5 {[%clk 0:02:46]} 12. Nxe5 {[%clk 0:02:43]}  Bxe5 {[%clk 0:02:46]} 13. Bxe5 {[%clk 0:02:42]}  Qxe5 {[%clk 0:02:46]} 14. Re1 {[%clk 0:02:40]}  Rfe8 {[%clk 0:02:46]} 15. Qb3 {[%clk 0:02:38]}  b6 {[%clk 0:02:45]} 16. Rad1 {[%clk 0:02:36]}  Rad8 {[%clk 0:02:45]} 17. h3 {[%clk 0:02:30]}  h6 {[%clk 0:02:41]} 18. Qa4 {[%clk 0:02:27]}  Rd7 {[%clk 0:02:36]} 19. Qb5 {[%clk 0:02:14]}  Red8 {[%clk 0:02:32]} 20. a4 {[%clk 0:02:10]}  Qe6 {[%clk 0:02:30]} 21. a5 {[%clk 0:02:04]}  Ne4 {[%clk 0:02:18]} 22. Nxe4 {[%clk 0:02:01]}  dxe4 {[%clk 0:02:19]} 23. Rxd7 {[%clk 0:02:00]}  Qxd7 {[%clk 0:02:18]} 24. Qxd7 {[%clk 0:01:54]}  Rxd7 {[%clk 0:02:19]} 25. axb6 {[%clk 0:01:49]}  axb6 {[%clk 0:02:19]} 26. Kf1 {[%clk 0:01:47]}  Rd2 {[%clk 0:02:12]} 27. Re2 {[%clk 0:01:47]}  Rd3 {[%clk 0:02:12]} 28. Re1 {[%clk 0:01:40]}  f5 {[%clk 0:02:06]} 29. Ke2 {[%clk 0:01:38]}  b5 {[%clk 0:02:02]} 30. Ra1 {[%clk 0:01:25]}  b4 {[%clk 0:02:02]} 31. Ra5 {[%clk 0:00:59]}  bxc3 {[%clk 0:01:59]} 32. Rxc5 {[%clk 0:00:59]}  Rd2+ {[%clk 0:01:55]} 33. Ke1 {[%clk 0:00:52]}  cxb2 {[%clk 0:01:54]} 0-1


[Site "https://www.chess.com"]

[Event "Titled Tuesday Blitz May 11 2021"]
[White "Stefansson, Vignir Vatnar"]
[Black "Zhigalko, Sergei"]
[WhiteFideId "2308649"]
[BlackFideId "13502956"]
[WhiteElo "2364"]
[BlackElo "2662"]
[Result "0-1"]
[Round "02"]
[TimeControl "180+1"]
[Date "2021.05.11"]
[WhiteClock "0:01:53"]
[BlackClock "0:01:56"]

1. d4 {[%clk 0:03:00]}  Nf6 {[%clk 0:02:54]} 2. c4 {[%clk 0:03:01]}  e6 {[%clk 0:02:54]} 3. Nf3 {[%clk 0:03:01]}  b6 {[%clk 0:02:54]} 4. g3 {[%clk 0:03:01]}  Ba6 {[%clk 0:02:54]} 5. b3 {[%clk 0:03:02]}  Bb4+ {[%clk 0:02:54]} 6. Bd2 {[%clk 0:03:02]}  Be7 {[%clk 0:02:54]} 7. Nc3 {[%clk 0:03:01]}  O-O {[%clk 0:02:53]} 8. e4 {[%clk 0:03:01]}  d5 {[%clk 0:02:53]} 9. cxd5 {[%clk 0:02:55]}  Bxf1 {[%clk 0:02:53]} 10. Kxf1 {[%clk 0:02:53]}  exd5 {[%clk 0:02:53]} 11. e5 {[%clk 0:02:54]}  Ne4 {[%clk 0:02:54]} 12. Kg2 {[%clk 0:02:50]}  Nxc3 {[%clk 0:02:52]} 13. Bxc3 {[%clk 0:02:50]}  Qd7 {[%clk 0:02:53]} 14. Re1 {[%clk 0:02:40]}  Nc6 {[%clk 0:02:53]} 15. Ng1 {[%clk 0:02:32]}  Nd8 {[%clk 0:02:43]} 16. f4 {[%clk 0:02:31]}  f5 {[%clk 0:02:43]} 17. exf6 {[%clk 0:02:30]}  Bxf6 {[%clk 0:02:43]} 18. Nf3 {[%clk 0:02:31]}  Ne6 {[%clk 0:02:43]} 19. Qd2 {[%clk 0:02:27]}  Rae8 {[%clk 0:02:38]} 20. Re2 {[%clk 0:02:26]}  Nxf4+ {[%clk 0:02:17]} 21. gxf4 {[%clk 0:02:21]}  Qg4+ {[%clk 0:02:17]} 22. Kf2 {[%clk 0:02:01]}  Bh4+ {[%clk 0:02:17]} 23. Nxh4 {[%clk 0:02:00]}  Rxf4+ {[%clk 0:02:15]} 24. Qxf4 {[%clk 0:01:53]}  Rxe2+ {[%clk 0:01:56]} 0-1


[Site "https://www.chess.com"]

[Event "Titled Tuesday Blitz May 11 2021"]
[White "Tejedor Fuente, Enrique"]
[Black "Matlakov, Maxim"]
[WhiteFideId "2299100"]
[BlackFideId "4168003"]
[WhiteElo "2535"]
[BlackElo "2760"]
[Result "0-1"]
[Round "02"]
[TimeControl "180+1"]
[Date "2021.05.11"]
[WhiteClock "0:00:01"]
[BlackClock "0:00:32"]

1. d4 {[%clk 0:03:00]}  d5 {[%clk 0:02:59]} 2. c4 {[%clk 0:03:00]}  dxc4 {[%clk 0:02:59]} 3. e3 {[%clk 0:02:57]}  Nf6 {[%clk 0:02:52]} 4. Bxc4 {[%clk 0:02:57]}  e6 {[%clk 0:02:52]} 5. Nc3 {[%clk 0:02:53]}  a6 {[%clk 0:02:51]} 6. Nf3 {[%clk 0:02:41]}  b5 {[%clk 0:02:49]} 7. Bd3 {[%clk 0:02:42]}  Bb7 {[%clk 0:02:47]} 8. O-O {[%clk 0:02:41]}  Nbd7 {[%clk 0:02:42]} 9. e4 {[%clk 0:02:36]}  b4 {[%clk 0:02:40]} 10. e5 {[%clk 0:02:32]}  bxc3 {[%clk 0:02:40]} 11. exf6 {[%clk 0:02:32]}  Qxf6 {[%clk 0:02:33]} 12. bxc3 {[%clk 0:02:30]}  Bxf3 {[%clk 0:02:33]} 13. Qxf3 {[%clk 0:02:30]}  Qxf3 {[%clk 0:02:32]} 14. gxf3 {[%clk 0:02:31]}  Bd6 {[%clk 0:02:32]} 15. Rb1 {[%clk 0:01:52]}  Ke7 {[%clk 0:02:29]} 16. Bg5+ {[%clk 0:01:46]}  f6 {[%clk 0:02:28]} 17. Be3 {[%clk 0:01:44]}  a5 {[%clk 0:02:21]} 18. Bb5 {[%clk 0:01:40]}  Rab8 {[%clk 0:02:15]} 19. a4 {[%clk 0:01:38]}  Nb6 {[%clk 0:02:04]} 20. Ra1 {[%clk 0:01:20]}  Nd5 {[%clk 0:01:56]} 21. Bd2 {[%clk 0:01:18]}  Bf4 {[%clk 0:01:54]} 22. c4 {[%clk 0:00:47]}  Bxd2 {[%clk 0:01:52]} 23. cxd5 {[%clk 0:00:47]}  exd5 {[%clk 0:01:52]} 24. Ra2 {[%clk 0:00:47]}  Bf4 {[%clk 0:01:30]} 25. Re1+ {[%clk 0:00:45]}  Kf7 {[%clk 0:01:30]} 26. Rae2 {[%clk 0:00:41]}  Rhd8 {[%clk 0:01:22]} 27. Re7+ {[%clk 0:00:39]}  Kf8 {[%clk 0:01:22]} 28. Kg2 {[%clk 0:00:35]}  Bd6 {[%clk 0:01:21]} 29. R7e2 {[%clk 0:00:34]}  Rb6 {[%clk 0:01:12]} 30. Re8+ {[%clk 0:00:31]}  Rxe8 {[%clk 0:01:12]} 31. Rxe8+ {[%clk 0:00:32]}  Kf7 {[%clk 0:01:13]} 32. Ra8 {[%clk 0:00:23]}  c6 {[%clk 0:01:08]} 33. Bd3 {[%clk 0:00:13]}  Rb4 {[%clk 0:01:05]} 34. Ra7+ {[%clk 0:00:13]}  Ke6 {[%clk 0:01:05]} 35. Bxh7 {[%clk 0:00:11]}  Rxa4 {[%clk 0:00:55]} 36. Bg8+ {[%clk 0:00:06]}  Kf5 {[%clk 0:00:53]} 37. Bh7+ {[%clk 0:00:02]}  g6 {[%clk 0:00:52]} 38. Rg7 {[%clk 0:00:01]}  Rxd4 {[%clk 0:00:51]} 39. Rxg6 {[%clk 0:00:01]}  Ke6 {[%clk 0:00:50]} 40. Bg8+ {[%clk 0:00:01]}  Ke7 {[%clk 0:00:50]} 41. Rg7+ {[%clk 0:00:01]}  Kf8 {[%clk 0:00:50]} 42. Rg6 {[%clk 0:00:01]}  Be5 {[%clk 0:00:47]} 43. Bh7 {[%clk 0:00:02]}  a4 {[%clk 0:00:47]} 44. Rg8+ {[%clk 0:00:02]}  Kf7 {[%clk 0:00:47]} 45. Ra8 {[%clk 0:00:03]}  Rh4 {[%clk 0:00:45]} 46. Bg8+ {[%clk 0:00:03]}  Kg7 {[%clk 0:00:46]} 47. Be6 {[%clk 0:00:02]}  Rxh2+ {[%clk 0:00:45]} 48. Kf1 {[%clk 0:00:02]}  Rh1+ {[%clk 0:00:45]} 49. Kg2 {[%clk 0:00:02]}  Ra1 {[%clk 0:00:46]} 50. Bd7 {[%clk 0:00:02]}  c5 {[%clk 0:00:38]} 51. Rxa4 {[%clk 0:00:01]}  Rxa4 {[%clk 0:00:37]} 52. Bxa4 {[%clk 0:00:02]}  Kf7 {[%clk 0:00:38]} 53. Bc6 {[%clk 0:00:02]}  Ke6 {[%clk 0:00:38]} 54. Kf1 {[%clk 0:00:02]}  Kd6 {[%clk 0:00:37]} 55. Bb7 {[%clk 0:00:02]}  c4 {[%clk 0:00:37]} 56. Ke2 {[%clk 0:00:02]}  Kc5 {[%clk 0:00:38]} 57. Ke3 {[%clk 0:00:02]}  Bd4+ {[%clk 0:00:38]} 58. Ke2 {[%clk 0:00:02]}  Bb2 {[%clk 0:00:34]} 59. f4 {[%clk 0:00:02]}  d4 {[%clk 0:00:34]} 60. Kf3 {[%clk 0:00:01]}  d3 {[%clk 0:00:34]} 61. Ke3 {[%clk 0:00:01]}  Bc1+ {[%clk 0:00:32]} 62. Kf3 {[%clk 0:00:01]}  Kd4 {[%clk 0:00:32]} 63. Ba6 {[%clk 0:00:01]}  c3 {[%clk 0:00:32]} 64. Bb5 {[%clk 0:00:01]}  c2 {[%clk 0:00:32]} 65. Ba4 {[%clk 0:00:01]}  Bd2 {[%clk 0:00:32]} 0-1


[Site "https://www.chess.com"]

[Event "Titled Tuesday Blitz May 11 2021"]
[White "Timmermans, Mark"]
[Black "Xtrmntr78"]
[WhiteFideId "1026399"]
[WhiteElo "2460"]
[BlackElo "2532"]
[Result "1-0"]
[Round "02"]
[TimeControl "180+1"]
[Date "2021.05.11"]
[WhiteClock "0:01:10"]
[BlackClock "0:00:03"]

1. b4 {[%clk 0:03:00]}  d5 {[%clk 0:02:55]} 2. Bb2 {[%clk 0:03:00]}  e6 {[%clk 0:02:48]} 3. e3 {[%clk 0:03:01]}  Nf6 {[%clk 0:02:46]} 4. b5 {[%clk 0:03:00]}  a6 {[%clk 0:02:46]} 5. a4 {[%clk 0:03:00]}  axb5 {[%clk 0:02:44]} 6. axb5 {[%clk 0:03:01]}  Rxa1 {[%clk 0:02:44]} 7. Bxa1 {[%clk 0:03:02]}  c5 {[%clk 0:02:37]} 8. c4 {[%clk 0:03:02]}  Be7 {[%clk 0:02:33]} 9. Nf3 {[%clk 0:03:03]}  O-O {[%clk 0:02:33]} 10. Be2 {[%clk 0:03:03]}  Nbd7 {[%clk 0:02:31]} 11. O-O {[%clk 0:03:04]}  Nb6 {[%clk 0:02:23]} 12. cxd5 {[%clk 0:03:03]}  Nbxd5 {[%clk 0:02:22]} 13. d4 {[%clk 0:03:03]}  Qa5 {[%clk 0:02:13]} 14. Nbd2 {[%clk 0:02:53]}  Rd8 {[%clk 0:02:09]} 15. Nc4 {[%clk 0:02:48]}  Qxb5 {[%clk 0:02:04]} 16. Nd6 {[%clk 0:02:42]}  Qc6 {[%clk 0:02:00]} 17. dxc5 {[%clk 0:02:42]}  Qxc5 {[%clk 0:01:54]} 18. Nxc8 {[%clk 0:02:42]}  Qxc8 {[%clk 0:01:54]} 19. Qb3 {[%clk 0:02:40]}  Ne4 {[%clk 0:01:47]} 20. Bd4 {[%clk 0:02:28]}  Bf6 {[%clk 0:01:32]} 21. Qb2 {[%clk 0:02:24]}  Bxd4 {[%clk 0:01:31]} 22. Nxd4 {[%clk 0:02:25]}  Nec3 {[%clk 0:01:29]} 23. Bf3 {[%clk 0:02:06]}  Rd7 {[%clk 0:00:39]} 24. g3 {[%clk 0:01:59]}  g6 {[%clk 0:00:35]} 25. Kg2 {[%clk 0:01:58]}  Qc4 {[%clk 0:00:34]} 26. Rc1 {[%clk 0:01:51]}  Rc7 {[%clk 0:00:31]} 27. Ne2 {[%clk 0:01:48]}  b5 {[%clk 0:00:20]} 28. e4 {[%clk 0:01:40]}  Na4 {[%clk 0:00:09]} 29. Qd2 {[%clk 0:01:34]}  Ndc3 {[%clk 0:00:08]} 30. e5 {[%clk 0:01:34]}  Rc8 {[%clk 0:00:05]} 31. h4 {[%clk 0:01:20]}  b4 {[%clk 0:00:05]} 32. h5 {[%clk 0:01:19]}  Qc7 {[%clk 0:00:03]} 33. Qg5 {[%clk 0:01:10]} 1-0


[Site "https://www.chess.com"]

[Event "Titled Tuesday Blitz May 11 2021"]
[White "Viana Da Costa, Fernando"]
[Black "gurelediz"]
[WhiteFideId "2111900"]
[WhiteElo "2247"]
[BlackElo "2743"]
[Result "0-1"]
[Round "02"]
[TimeControl "180+1"]
[Date "2021.05.11"]
[WhiteClock "0:00:04"]
[BlackClock "0:00:32"]

1. e4 {[%clk 0:02:55]}  c5 {[%clk 0:02:59]} 2. Nf3 {[%clk 0:02:53]}  e6 {[%clk 0:03:00]} 3. d4 {[%clk 0:02:52]}  cxd4 {[%clk 0:03:01]} 4. Nxd4 {[%clk 0:02:52]}  Nc6 {[%clk 0:03:01]} 5. Nb5 {[%clk 0:02:45]}  Nf6 {[%clk 0:02:58]} 6. Bf4 {[%clk 0:02:31]}  d6 {[%clk 0:02:40]} 7. Bxd6 {[%clk 0:02:22]}  Bxd6 {[%clk 0:02:40]} 8. Qxd6 {[%clk 0:02:17]}  Qxd6 {[%clk 0:02:39]} 9. Nxd6+ {[%clk 0:02:13]}  Ke7 {[%clk 0:02:40]} 10. Nxc8+ {[%clk 0:02:01]}  Raxc8 {[%clk 0:02:41]} 11. Nc3 {[%clk 0:01:50]}  Rhd8 {[%clk 0:02:29]} 12. Bd3 {[%clk 0:01:44]}  Nb4 {[%clk 0:02:23]} 13. O-O-O {[%clk 0:01:37]}  Ng4 {[%clk 0:02:14]} 14. Rd2 {[%clk 0:01:29]}  Ne5 {[%clk 0:01:43]} 15. Rhd1 {[%clk 0:01:10]}  Nexd3+ {[%clk 0:01:41]} 16. cxd3 {[%clk 0:01:07]}  Nxa2+ {[%clk 0:01:41]} 17. Kc2 {[%clk 0:01:07]}  b5 {[%clk 0:01:25]} 18. Kb3 {[%clk 0:01:02]}  Nxc3 {[%clk 0:01:25]} 19. bxc3 {[%clk 0:01:03]}  a5 {[%clk 0:01:25]} 20. Ra1 {[%clk 0:00:51]}  Ra8 {[%clk 0:01:21]} 21. c4 {[%clk 0:00:44]}  bxc4+ {[%clk 0:01:19]} 22. Kxc4 {[%clk 0:00:44]}  a4 {[%clk 0:01:14]} 23. d4 {[%clk 0:00:40]}  a3 {[%clk 0:01:10]} 24. d5 {[%clk 0:00:37]}  Ra4+ {[%clk 0:01:06]} 25. Kb3 {[%clk 0:00:26]}  Rxe4 {[%clk 0:01:04]} 26. Rxa3 {[%clk 0:00:26]}  Rxd5 {[%clk 0:01:01]} 27. Ra7+ {[%clk 0:00:20]}  Kf6 {[%clk 0:01:00]} 28. Rda2 {[%clk 0:00:14]}  Re1 {[%clk 0:00:50]} 29. Kc3 {[%clk 0:00:13]}  Rc1+ {[%clk 0:00:41]} 30. Kb4 {[%clk 0:00:12]}  Rd8 {[%clk 0:00:33]} 31. Rb7 {[%clk 0:00:04]}  Rb1+ {[%clk 0:00:32]} 0-1


[Site "https://www.chess.com"]

[Event "Titled Tuesday Blitz May 11 2021"]
[White "Wu, Christopher"]
[Black "Kamsky, Gata"]
[WhiteFideId "2040875"]
[BlackFideId "2000024"]
[WhiteElo "2554"]
[BlackElo "2644"]
[Result "0-1"]
[Round "02"]
[TimeControl "180+1"]
[Date "2021.05.11"]
[WhiteClock "0:00:31"]
[BlackClock "0:00:32"]

1. e4 {[%clk 0:03:00]}  c5 {[%clk 0:02:50]} 2. Nf3 {[%clk 0:03:00]}  e6 {[%clk 0:02:47]} 3. d4 {[%clk 0:02:59]}  cxd4 {[%clk 0:02:47]} 4. Nxd4 {[%clk 0:03:00]}  a6 {[%clk 0:02:46]} 5. c4 {[%clk 0:02:59]}  Nf6 {[%clk 0:02:42]} 6. Nc3 {[%clk 0:02:55]}  Qc7 {[%clk 0:02:40]} 7. Bd3 {[%clk 0:02:44]}  Bc5 {[%clk 0:02:35]} 8. Nc2 {[%clk 0:02:40]}  b6 {[%clk 0:02:34]} 9. O-O {[%clk 0:02:39]}  Bb7 {[%clk 0:02:34]} 10. Qe2 {[%clk 0:02:37]}  Nc6 {[%clk 0:02:28]} 11. Kh1 {[%clk 0:02:30]}  Ne5 {[%clk 0:02:25]} 12. f4 {[%clk 0:02:23]}  Nxd3 {[%clk 0:02:25]} 13. Qxd3 {[%clk 0:02:24]}  Rc8 {[%clk 0:02:12]} 14. b3 {[%clk 0:02:07]}  O-O {[%clk 0:02:07]} 15. Be3 {[%clk 0:02:02]}  Be7 {[%clk 0:01:56]} 16. a4 {[%clk 0:01:53]}  d5 {[%clk 0:01:51]} 17. e5 {[%clk 0:01:30]}  dxc4 {[%clk 0:01:50]} 18. bxc4 {[%clk 0:01:29]}  Qxc4 {[%clk 0:01:50]} 19. Qxc4 {[%clk 0:01:25]}  Rxc4 {[%clk 0:01:49]} 20. exf6 {[%clk 0:01:25]}  Bxf6 {[%clk 0:01:50]} 21. Bxb6 {[%clk 0:01:22]}  Rxc3 {[%clk 0:01:44]} 22. Nd4 {[%clk 0:01:17]}  Rc4 {[%clk 0:01:41]} 23. Rfd1 {[%clk 0:01:08]}  h5 {[%clk 0:01:35]} 24. a5 {[%clk 0:01:08]}  h4 {[%clk 0:01:34]} 25. h3 {[%clk 0:01:08]}  Rfc8 {[%clk 0:01:32]} 26. Kh2 {[%clk 0:00:59]}  e5 {[%clk 0:01:21]} 27. Nf5 {[%clk 0:00:56]}  exf4 {[%clk 0:01:16]} 28. Nd6 {[%clk 0:00:54]}  Bxa1 {[%clk 0:01:14]} 29. Rxa1 {[%clk 0:00:54]}  Bd5 {[%clk 0:01:09]} 30. Nxc8 {[%clk 0:00:53]}  Rxc8 {[%clk 0:01:08]} 31. Rd1 {[%clk 0:00:53]}  Be4 {[%clk 0:01:06]} 32. Rd2 {[%clk 0:00:51]}  f6 {[%clk 0:01:01]} 33. Rd8+ {[%clk 0:00:47]}  Rxd8 {[%clk 0:01:00]} 34. Bxd8 {[%clk 0:00:48]}  Kf7 {[%clk 0:00:59]} 35. Kg1 {[%clk 0:00:48]}  f3 {[%clk 0:00:57]} 36. gxf3 {[%clk 0:00:44]}  Bxf3 {[%clk 0:00:57]} 37. Kf2 {[%clk 0:00:44]}  Bd5 {[%clk 0:00:55]} 38. Bb6 {[%clk 0:00:43]}  g5 {[%clk 0:00:54]} 39. Bd4 {[%clk 0:00:42]}  Kg6 {[%clk 0:00:54]} 40. Bb6 {[%clk 0:00:42]}  f5 {[%clk 0:00:52]} 41. Bd8 {[%clk 0:00:42]}  Kh5 {[%clk 0:00:51]} 42. Be7 {[%clk 0:00:43]}  Bc6 {[%clk 0:00:47]} 43. Bd8 {[%clk 0:00:42]}  Bd7 {[%clk 0:00:46]} 44. Be7 {[%clk 0:00:39]}  Bc6 {[%clk 0:00:34]} 45. Bd8 {[%clk 0:00:39]}  g4 {[%clk 0:00:34]} 46. hxg4+ {[%clk 0:00:38]}  fxg4 {[%clk 0:00:35]} 47. Bc7 {[%clk 0:00:37]}  Kg6 {[%clk 0:00:33]} 48. Bd8 {[%clk 0:00:37]}  g3+ {[%clk 0:00:32]} 49. Kf1 {[%clk 0:00:33]}  h3 {[%clk 0:00:32]} 50. Bc7 {[%clk 0:00:31]}  h2 {[%clk 0:00:32]} 0-1


[Site "https://www.chess.com"]